fUSD/lending_fUSD_20240720
["ID","MTS","AMOUNT","RATE_DAILY","PERIOD"]
[332706262,1721466631855,-500.0,0.00013511,2]
[332706263,1721466631865,-500.0,0.0001352,2]
[332706264,1721466631875,-500.0,0.00013529,2]
[332706265,1721466631885,-500.0,0.00013537,2]
[332706266,1721466631895,-1403.47164432,0.00013579,2]
[332706267,1721466631905,-15721.263,0.00013602,2]
[332706268,1721466631915,-2681.9773,0.00013659,2]
[332706269,1721466631924,-156.03,0.00013699,2]
[332706271,1721466631934,-1372.39,0.00013699,2]
[332706273,1721466631943,-250.0,0.00013699,2]
[332706275,1721466631952,-3054.48,0.00013699,2]
[332706276,1721466631962,-199.65,0.00013699,2]
[332706277,1721466631971,-22626.1222449,0.0001372,2]
[332706278,1721466631981,-22626.1222449,0.0001372,2]
[332706280,1721466631990,-904.0,0.00013759,2]
[332706282,1721466631999,-15459.65772024,0.00013899,2]
[332706284,1721466632009,-163.07773792,0.000139,2]
[332706286,1721466632019,-500.0,0.00014,2]
[332706288,1721466632029,-648.8628764,0.00014283,2]
[332706290,1721466632039,-156.03,0.00014384,2]
[332706292,1721466632048,-199.65,0.00014384,2]
[332706294,1721466632058,-155.75,0.00014412,2]
[332706296,1721466632067,-157.76751704,0.00014519,2]
[332706298,1721466632077,-155.0,0.00014519,2]
[332706300,1721466632087,-539.14,0.00014567,2]
[332706302,1721466632096,-699.96148618,0.00014579,2]
[332706304,1721466632105,-188.56888203,0.00014667,2]
[332706306,1721466632116,-500.0,0.000148,2]
[332706308,1721466632126,-491.4009,0.000148,2]
[332706310,1721466632136,-9968.8805,0.000148,2]
[332706312,1721466632146,-575.0,0.0001485,2]
[332706314,1721466632156,-413.91370066,0.00014899,2]
[332706316,1721466632165,-303.3643,0.000149,2]
[332706318,1721466632175,-12577.8517,0.000149,2]
[332706320,1721466632185,-4330.5022,0.000149,2]
[332706322,1721466632194,-4851.924,0.000149,2]
[332706324,1721466632205,-49354.6198,0.000149,2]
[332706326,1721466632215,-167.74076081,0.000149,2]
[332706328,1721466632224,-2793.2759,0.000149,2]
[332706330,1721466632233,-957.9298,0.000149,2]
[332706332,1721466632243,-5000.0,0.000149,2]
[332706334,1721466632252,-702.3677,0.000149,2]
[332706336,1721466632262,-1388.1691,0.000149,2]
[332706337,1721466632271,-1000.0,0.000149,2]
[332706339,1721466632281,-559.40135262,0.000149,2]
[332706341,1721466632290,-7500.0,0.000149,2]
[332706343,1721466632299,-219.63818571,0.000149,2]
[332706345,1721466632309,-319.20455964,0.000149,2]
[332706347,1721466632318,-250.07545116,0.000149,2]
[332706349,1721466632328,-3831.98572058,0.000149,2]
[332706351,1721466632337,-219.42,0.00014904,2]
[332706353,1721466632347,-183.60925821,0.0001497,2]
[332706355,1721466632357,-2486.74302038,0.0001497,2]
[332706357,1721466632367,-300.0,0.0001497,2]
[332706359,1721466632377,-227.4651143,0.00014988,2]
[332706361,1721466632386,-355.05727574,0.0001499,2]
[332706363,1721466632396,-355.05727574,0.0001499,2]
[332706365,1721466632406,-355.05727574,0.0001499,2]
[332706367,1721466632416,-500.0,0.00014999,2]
[332706369,1721466632425,-500.0,0.00014999,2]
[332706371,1721466632435,-500.0,0.00014999,2]
[332706373,1721466632454,-500.0,0.00014999,2]
[332706375,1721466632465,-606.79900705,0.00014999,2]
[332706377,1721466632475,-414180.39569615,0.00015,2]
[332706380,1721466632488,-7762.6841841,0.00015,2]
[332706382,1721466632500,-15602.263051,0.00015,2]
[332706386,1721466632532,-500.0,0.00012908,2]
[332706388,1721466632542,-895.41908041,0.00015,2]
[332706390,1721466632555,-679.83163208,0.00015,2]
[332706392,1721466632567,-447.53187127,0.00015,2]
[332706395,1721466632585,-9741.80218521,0.00015,2]
[332706397,1721466632598,-161108.91598397,0.00015,2]
[332706399,1721466632609,-1339.32568212,0.00015,2]
[332706402,1721466632626,-12611.04820383,0.00015,2]
[332706404,1721466632637,-7800.69533894,0.00015,2]
[332706406,1721466632649,-1284.77674596,0.00015,2]
[332706408,1721466632661,-474.46635641,0.00015,2]
[332706410,1721466632673,-569.99999994,0.00015,2]
[332706413,1721466632686,-351.899999,0.00015,2]
[332706415,1721466632698,-315.0,0.00015,2]
[332706417,1721466632710,-1062.65487109,0.00015,2]
[332706419,1721466632721,-17994.43940248,0.00015,2]
[332706421,1721466632732,-4114.08125678,0.00015,2]
[332706425,1721466632756,-2219.57379425,0.00015,2]
[332706427,1721466632767,-860.35582076,0.00015,2]
[332706429,1721466632779,-521.97670531,0.00015,2]
[332706431,1721466632791,-905.34153942,0.00015,2]
[332706433,1721466632802,-560.2023371,0.00015,2]
[332706435,1721466632815,-1709.15694889,0.00015,2]
[332706438,1721466632827,-501.23538144,0.00015,2]
[332706440,1721466632839,-2603.71306986,0.00015,2]
[332706442,1721466632851,-3421.55845167,0.00015,2]
[332706444,1721466632863,-849.96717983,0.00015,2]
[332706446,1721466632875,-1224.56876972,0.00015,2]
[332706448,1721466632887,-83469.44514147,0.00015,2]
[332706451,1721466632899,-9231.37963767,0.00015,2]
[332706454,1721466632922,-18450.86851453,0.00015,2]
[332706457,1721466632947,-25305.0000976,0.00015,2]
[332706459,1721466632958,-409.12146104,0.00015,2]
[332706462,1721466632970,-3725.14623216,0.00015,2]
[332706464,1721466632982,-1381.95190557,0.00015,2]
[332706466,1721466632994,-431.18512968,0.00015,2]
[332706723,1721466637519,-17493.33481061,0.000148,2]
[332706724,1721466637531,-16075.72136431,0.000148,2]
[332706725,1721466637542,-1876.900965,0.000148,2]
[332706726,1721466637555,-60200.48900671,0.000148,2]
[332706727,1721466637565,-1441.03869151,0.000148,2]
[332706728,1721466637575,-813.90015,0.000148,2]
[332706729,1721466637588,-78584.2278505,0.000148,2]
[332706730,1721466637599,-332.57131004,0.000148,2]
[332706731,1721466637610,-1651.94935281,0.000148,2]
[332706732,1721466637622,-10852.37161413,0.000148,2]
[332706733,1721466637633,-6470.20833297,0.000148,2]
[332706734,1721466637657,-49207.28655141,0.000148,2]
[332706735,1721466637667,-191.04650164,0.00014997,2]
[332706736,1721466637677,-435024.52864987,0.00015,2]
[332706737,1721466637689,-648.10177974,0.00015,2]
[332706738,1721466637719,-785.23100942,0.00015,2]
[332706739,1721466637731,-2067.86079862,0.00015,2]
[332706740,1721466637744,-2676.10473281,0.00015,2]
[332706741,1721466637756,-1039.71316896,0.00015,2]
[332706742,1721466637768,-5340.98495427,0.00015,2]
[332706743,1721466637779,-251.60714365,0.00015,2]
[332706744,1721466637791,-4283.63537498,0.00015,2]
[332706745,1721466637804,-264.54053448,0.00015,2]
[332706746,1721466637816,-5751.94436489,0.00015,2]
[332706747,1721466637829,-421.399227,0.00015,2]
[332706748,1721466637841,-2506.77543946,0.00015,2]
[332706749,1721466637853,-2604.69232305,0.00015,2]
[332706750,1721466637865,-7969.17193469,0.00015,2]
[332706751,1721466637876,-3386.27530717,0.00015,2]
[332706752,1721466637887,-28372.69788135,0.00015,2]
[332706753,1721466637907,-1019.83248483,0.00015,2]
[332706754,1721466637919,-1340.26476761,0.00015,2]
[332706755,1721466637931,-1258.28539142,0.00015,2]
[332706756,1721466637943,-4914.13283751,0.00015,2]
[332706757,1721466637954,-413.27020903,0.00015,2]
[332706758,1721466637987,-616.34199997,0.00015,2]
[332706759,1721466637998,-847.007452,0.00015,2]
[332706762,1721466638062,-899249.2064816,0.00015,2]
[332706764,1721466638073,-509.16789362,0.00015,2]
[332706766,1721466638084,-7214.73959698,0.00015,2]
[332706768,1721466638095,-1145.08013776,0.00015,2]
[332706770,1721466638106,-11216.25702667,0.00015,2]
[332706771,1721466638119,-6525.06999584,0.00015,2]
[332706786,1721466640230,-100000.0,0.000148,2]
[332706788,1721466640244,-350388.50166523,0.00015,2]
[332706792,1721466640272,-202.37217045,0.000149,2]
[332706795,1721466640284,-274.0856067,0.00015,2]
[332706811,1721466640483,-45592.09806927,0.00015,2]
[332706812,1721466640496,-510.9751729,0.00015,2]
[332706813,1721466640579,-6100.16620858,0.00015,2]
[332706814,1721466640601,-52877.57373107,0.00015,2]
[332706815,1721466640619,-6308.7,0.00015,2]
[332706818,1721466640658,-86447.7864831,0.00015,2]
[332706833,1721466640805,-35306.54403993,0.00015,2]
[332706877,1721466642829,-4011.74117744,0.00015,2]
[332706917,1721466645692,-227.4651143,0.00014899,2]
[332706919,1721466645702,-1000.0,0.000149,2]
[332706921,1721466645712,-1386.29789582,0.000149,2]
[332706923,1721466645721,-652.21193682,0.00015,2]
[332706937,1721466645859,-589.738576,0.00015,2]
[332706939,1721466645876,-19435.49176342,0.00015,2]
[332707019,1721466991728,299.98,0.0001499,30]
[332707032,1721467195362,-477.31,0.00012352,2]
[332707033,1721467195382,-500.0,0.00013149,2]
[332707034,1721467195406,-500.0,0.00013247,2]
[332707035,1721467195428,-500.0,0.00013256,2]
[332707036,1721467195453,-500.0,0.00013265,2]
[332707037,1721467195477,-500.0,0.00013273,2]
[332707038,1721467195496,-50000.0,0.00013282,2]
[332707039,1721467195517,-500.0,0.00013282,2]
[332707040,1721467195542,-500.0,0.00013291,2]
[332707041,1721467195564,-500.0,0.000133,2]
[332707042,1721467195586,-500.0,0.00013309,2]
[332707043,1721467195608,-500.0,0.00013317,2]
[332707044,1721467195629,-500.0,0.00013326,2]
[332707045,1721467195650,-500.0,0.00013335,2]
[332707046,1721467195670,-500.0,0.00013344,2]
[332707047,1721467195695,-150.0,0.00013494,2]
[332707048,1721467195716,-168.83,0.00013495,2]
[332707049,1721467195738,-294.74,0.00013699,2]
[332707050,1721467195759,-364.0,0.00013699,2]
[332707051,1721467196031,-14198.12,0.00013699,2]
[332707053,1721467343255,518.53,0.00011596,2]
[332707058,1721467486159,-195.82,0.00013181,2]
[332707059,1721467486180,-500.0,0.00013194,2]
[332707060,1721467486200,-500.0,0.00013203,2]
[332707061,1721467486225,-500.0,0.00013212,2]
[332707062,1721467486250,-500.0,0.00013221,2]
[332707063,1721467486274,-500.0,0.00013229,2]
[332707064,1721467486297,-500.0,0.00013238,2]
[332707065,1721467486322,-19971.18,0.00013238,2]
[332707097,1721467776424,-2344.73810879,0.0001269,2]
[332707098,1721467776450,-155.75,0.00012944,2]
[332707099,1721467776471,-500.0,0.00013133,2]
[332707100,1721467776492,-500.0,0.00013141,2]
[332707101,1721467776511,-500.0,0.0001315,2]
[332707102,1721467776531,-500.0,0.00013159,2]
[332707103,1721467776553,-500.0,0.00013168,2]
[332707104,1721467776574,-500.0,0.00013177,2]
[332707105,1721467776594,-500.0,0.00013185,2]
[332707106,1721467776614,-3755.56,0.00013203,2]
[332707107,1721467776634,-323.49,0.0001324,2]
[332707108,1721467776654,-250.0,0.00013292,2]
[332707110,1721467776674,-26443.5,0.00013319,2]
[332707112,1721467776694,-8813.14,0.00013387,2]
[332707114,1721467776713,-1614.21,0.00013387,2]
[332707116,1721467776733,-200.0,0.00013462,2]
[332707118,1721467776753,-1801.86,0.00013462,2]
[332707120,1721467776774,-150.0,0.00013509,2]
[332707122,1721467776794,-6552.75189121,0.00013564,2]
[332707167,1721467831808,-500.0,0.00013124,2]
[332707168,1721467831818,-17347.24810879,0.00013564,2]
[332707169,1721467831828,-1403.47164432,0.00013579,2]
[332707170,1721467831838,-150.0,0.00013641,2]
[332707171,1721467831849,-2322.9,0.00013642,2]
[332707172,1721467831861,-3044.53,0.00013642,2]
[332707173,1721467831876,-499.99,0.00013642,2]
[332707174,1721467831887,-14133.03322204,0.00013642,2]
[332707175,1721467831898,-1562.74,0.00013699,2]
[332707176,1721467831908,-1005.53,0.00013699,5]
[332707177,1721467831920,-199.65,0.00013699,2]
[332707178,1721467831931,-5801.88,0.00013699,2]
[332707179,1721467831943,-676.51,0.00013766,2]
[332707180,1721467831954,-992.38,0.00013766,2]
[332707181,1721467831964,-304.07,0.00013856,2]
[332707182,1721467831974,-518.53,0.0001386,2]
[332707183,1721467831984,-271.23119988,0.00013879,2]
[332707184,1721467831994,-1268.45848628,0.00013889,2]
[332707185,1721467832003,-1580.46142743,0.00013889,2]
[332707186,1721467832012,-1294.71144181,0.00013896,2]
[332707187,1721467832021,-1000.0,0.00013973,2]
[332707188,1721467832032,-413.91370066,0.00013979,2]
[332707189,1721467832042,-466.64099079,0.00013986,2]
[332707190,1721467832052,-493.46385358,0.00013986,2]
[332707191,1721467832061,-466.64099079,0.00013986,2]
[332707192,1721467832071,-156.039917,0.00013986,2]
[332707193,1721467832080,-170.14,0.0001399,2]
[332707194,1721467832090,-203869.01689041,0.00014,2]
[332707195,1721467832100,-23181.54674992,0.00014284,2]
[332707196,1721467832110,-3944.052,0.00014384,2]
[332707197,1721467832120,-294.74,0.00014384,2]
[332707198,1721467832130,-375.49746215,0.0001443,2]
[332707199,1721467832139,-599.76372935,0.00014451,2]
[332707200,1721467832149,-5623.59890279,0.00014451,2]
[332707201,1721467832158,-174.96,0.00014471,2]
[332707202,1721467832168,-155.32776398,0.00014519,2]
[332707203,1721467832177,-200.43610445,0.00014667,2]
[332707204,1721467832187,-155.73323455,0.00014776,2]
[332707205,1721467832196,-155.70821702,0.00014789,2]
[332707206,1721467832205,-320.97665086,0.00014795,2]
[332707207,1721467832215,-14696.3304,0.000148,2]
[332707208,1721467832224,-670.6119,0.000148,2]
[332707209,1721467832234,-2087.7494,0.000148,2]
[332707210,1721467832244,-176.49176034,0.000148,2]
[332707211,1721467832253,-33035.0,0.0001485,2]
[332707213,1721467832263,-169.14083102,0.0001489,2]
[332707214,1721467832273,-323.49,0.00014895,2]
[332707215,1721467832282,-155.0,0.00014896,2]
[332707216,1721467832293,-500.0,0.000149,2]
[332707217,1721467832302,-5000.0,0.000149,2]
[332707218,1721467832312,-3684.26131425,0.000149,2]
[332707219,1721467832323,-824.0317,0.000149,2]
[332707220,1721467832335,-245000.0,0.000149,2]
[332707221,1721467832346,-167.90797253,0.000149,2]
[332707222,1721467832356,-183.48123099,0.000149,2]
[332707223,1721467832367,-7500.0,0.000149,2]
[332707224,1721467832378,-4095.07533689,0.000149,2]
[332707226,1721467832388,-159.43112265,0.0001496,2]
[332707227,1721467832400,-3331.12406811,0.0001496,2]
[332707228,1721467832410,-3403.89837737,0.00014988,2]
[332707229,1721467832421,-2307.00155655,0.00014988,2]
[332707230,1721467832432,-50955.20435529,0.0001499,2]
[332707231,1721467832442,-169.14083102,0.0001499,2]
[332707232,1721467832453,-424.8387898,0.00014993,2]
[332707233,1721467832463,-2039.2041016,0.00014993,2]
[332707234,1721467832473,-16649.1060366,0.00014993,2]
[332707235,1721467832483,-677.3456994,0.00014993,2]
[332707236,1721467832493,-416.1696128,0.00014993,2]
[332707237,1721467832503,-1000.0,0.00014994,2]
[332707238,1721467832513,-829.77219537,0.00014996,2]
[332707239,1721467832525,-211.40172643,0.00014999,2]
[332707240,1721467832535,-936.93920447,0.00014999,2]
[332707241,1721467832546,-156.40733776,0.00014999,2]
[332707242,1721467832556,-255.89656553,0.00014999,2]
[332707243,1721467832566,-99788.04600429,0.00015,2]
[332707244,1721467832576,-155.0,0.00015,2]
[332707245,1721467832585,-486.96109,0.00015,2]
[332707246,1721467832596,-68679.6239755,0.00015,2]
[332707247,1721467832609,-1541.9914002,0.00015,2]
[332707248,1721467832620,-1264.92213148,0.00015,2]
[332707249,1721467832632,-803.69185319,0.00015,2]
[332707250,1721467832724,-479.02536476,0.00015,2]
[332707251,1721467832741,-603.65485929,0.00013378,2]
[332707252,1721467832752,-945.19888556,0.00013378,2]
[332707276,1721467837752,-355.19161726,0.00013378,2]
[332707277,1721467837852,-2644.17619719,0.00013378,2]
[332707278,1721467837898,-1264.43557993,0.00013378,2]
[332707279,1721467837956,-544.38170658,0.00013378,2]
[332707280,1721467838034,-16269.08339909,0.00013378,2]
[332707281,1721467838044,-7895.1267,0.000139,2]
[332707283,1721467838054,-599.76372935,0.0001443,2]
[332707285,1721467838063,-389.04344835,0.00014776,2]
[332707287,1721467838073,-155.0,0.00014789,2]
[332707289,1721467838082,-208.31669417,0.00014988,2]
[332707291,1721467838092,-194.46755102,0.0001499,2]
[332707293,1721467838101,-460206.06380706,0.00015,2]
[332707454,1721467839685,-3690.6666,0.00015,2]
[332707560,1721467840911,-1689.51625662,0.00015,2]
[332707562,1721467840923,-4944.14191786,0.00015,2]
[332707568,1721467840973,-352319.69631359,0.00015,2]
[332707574,1721467841025,-1615.19148214,0.00015,2]
[332707676,1721467842834,-466.64099079,0.00013979,2]
[332707678,1721467842844,-107.78256013,0.00015,2]
[332707680,1721467842855,-32457.37344144,0.00015,2]
[332707682,1721467842870,-329.70014336,0.00015,2]
[332707683,1721467842979,-1392.80182145,0.00015,2]
[332707684,1721467843073,-33370.9992239,0.00015,2]
[332707685,1721467843152,-500.0,0.00015,2]
[332707794,1721467845796,-500.0,0.00015,2]
[332707810,1721467845953,-4451.40432826,0.00015,2]
[332707812,1721467845966,-6441.48507553,0.00015,2]
[332707825,1721467846050,-1208.0,0.00015,2]
[332707828,1721467846062,-500.0,0.00015,2]
[332707849,1721467846206,-48179.88832427,0.00015,2]
[332707862,1721467847195,945.0,0.00013378,2]
[332707900,1721468005203,527.82,0.00012007,2]
[332707911,1721468134909,-1986.4984191,0.00012828,2]
[332707912,1721468134931,-22626.1222449,0.00012855,2]
[332707913,1721468134955,-791.379336,0.00012863,2]
[332707924,1721468325538,993.88819797,0.00025,120]
[332707931,1721468524100,-451.31,0.0001274,2]
[332707932,1721468524123,-300.0,0.0001289,2]
[332707933,1721468524146,-23148.69,0.00012891,2]
[332707934,1721468527721,401.53109,0.00012676,2]
[332707944,1721468759807,501.42,0.00010856,2]
[332707946,1721468771558,650.35007933,0.000127,2]
[332707957,1721468893186,433.56671954,0.00012657,2]
[332707958,1721468898161,433.56671954,0.00012679,2]
[332707959,1721468903441,433.56671954,0.000127,2]
[332707990,1721469032097,-194.1,0.00012744,2]
[332707991,1721469032106,-245.78,0.00012753,2]
[332707992,1721469032116,-250.0,0.00012757,2]
[332707993,1721469032125,-245.49204965,0.00012768,2]
[332707994,1721469032137,-54.50795035,0.00012768,2]
[332707995,1721469032146,-6623.55502176,0.00012769,2]
[332707996,1721469032157,-5314.0001,0.00012769,2]
[332707997,1721469032168,-6683.26958659,0.00012769,2]
[332707998,1721469032187,-2748.05976961,0.00012769,2]
[332707999,1721469032199,-567.12177962,0.00012769,2]
[332708000,1721469032210,-1963.99374242,0.00012769,2]
[332708001,1721469032220,-243.25,0.000128,2]
[332708002,1721469032229,-80.5046694,0.00012907,2]
[332708003,1721469032245,-363.76455997,0.00012907,2]
[332708004,1721469032259,-257.23433876,0.00012907,2]
[332708005,1721469032270,-747.70566124,0.00012907,2]
[332708006,1721469032281,-2333.50701761,0.00012907,2]
[332708007,1721469032293,-2207.40403079,0.00012907,2]
[332708008,1721469032304,-1325.14524,0.00012907,2]
[332708009,1721469032319,-3406.03390733,0.00012907,2]
[332708010,1721469032331,-2522.06617273,0.00012907,2]
[332708011,1721469032342,-7384.92556584,0.00012907,2]
[332708012,1721469032354,-672.3424,0.00012907,2]
[332708013,1721469032365,-1666.21666469,0.00012907,2]
[332708014,1721469032376,-741.8811006,0.00012907,2]
[332708015,1721469032395,-1405.90407978,0.00012907,2]
[332708016,1721469032406,-784.34351086,0.00012907,2]
[332708017,1721469032417,-3769.2617379,0.00012907,2]
[332708018,1721469032443,-3064.60664569,0.00012907,2]
[332708019,1721469032454,-5865.45045287,0.00012907,2]
[332708020,1721469032466,-619.65174307,0.00012907,2]
[332708021,1721469032477,-4130.4738439,0.00012907,2]
[332708023,1721469038332,-1000.0,0.00012908,2]
[332708024,1721469038342,-500.0,0.00013009,2]
[332708025,1721469038352,-500.0,0.00013018,2]
[332708026,1721469038361,-1924.45221331,0.00013026,2]
[332708027,1721469038372,-150.0,0.00013026,2]
[332708028,1721469038381,-500.0,0.00013027,2]
[332708029,1721469038391,-500.0,0.00013036,2]
[332708031,1721469038400,-500.0,0.00013045,2]
[332708033,1721469038410,-150.99,0.00013045,2]
[332708035,1721469038419,-500.0,0.00013053,2]
[332708036,1721469038428,-500.0,0.00013062,2]
[332708037,1721469038439,-500.0,0.00013071,2]
[332708038,1721469038449,-500.0,0.0001308,2]
[332708039,1721469038458,-500.0,0.00013089,2]
[332708040,1721469038468,-500.0,0.00013097,2]
[332708041,1721469038478,-500.0,0.00013106,2]
[332708042,1721469038487,-500.0,0.00013115,2]
[332708043,1721469038496,-501.42,0.0001312,2]
[332708044,1721469038506,-250.0,0.00013165,2]
[332708045,1721469038516,-5055.5879,0.00013298,2]
[332708046,1721469038526,-172.74,0.00013425,2]
[332708047,1721469038535,-10526.84760269,0.00013489,2]
[332708048,1721469038544,-200.0,0.00013578,2]
[332708049,1721469038553,-9255.41024212,0.00013579,2]
[332708050,1721469038562,-4000.69307287,0.00013698,2]
[332708051,1721469038571,-781.37,0.00013699,2]
[332708052,1721469038581,-428.53,0.00013699,2]
[332708053,1721469038590,-287.08,0.00013699,2]
[332708054,1721469038600,-2751.0,0.00013699,2]
[332708055,1721469038609,-1847.14360176,0.00013699,2]
[332708056,1721469038622,-156.99,0.00013717,2]
[332708057,1721469038632,-22626.1222449,0.0001372,2]
[332708058,1721469038641,-244.10807982,0.000138,2]
[332708059,1721469038653,-21719.20335169,0.000138,2]
[332708060,1721469038662,-805.9,0.0001381,2]
[332708061,1721469038672,-2099.29354099,0.00013859,2]
[332708062,1721469038681,-398.35406182,0.00013859,2]
[332708063,1721469038690,-1350.69357192,0.00013859,2]
[332708064,1721469038699,-1273.51084788,0.00013889,2]
[332708065,1721469038709,-44819.2056,0.000139,2]
[332708066,1721469038718,-500.0,0.000139,2]
[332708067,1721469038727,-1000.0,0.00013953,2]
[332708068,1721469038737,-1000.0,0.00013973,2]
[332708069,1721469038746,-159.82727271,0.00013986,2]
[332708070,1721469038756,-420.0,0.00014045,2]
[332708071,1721469038766,-358.1856321,0.00014086,2]
[332708072,1721469038775,-214.0,0.00014133,2]
[332708073,1721469038785,-425.1979385,0.00014261,2]
[332708074,1721469038794,-187.41760858,0.00014261,2]
[332708075,1721469038803,-194.1,0.00014337,2]
[332708076,1721469038813,-287.08,0.00014384,2]
[332708077,1721469038823,-243.25,0.000144,2]
[332708078,1721469038832,-202.5999635,0.0001443,2]
[332708079,1721469038842,-202.5999635,0.0001443,2]
[332708080,1721469038851,-178.95402425,0.00014451,2]
[332708081,1721469038860,-155.65931188,0.00014579,2]
[332708082,1721469038871,-413.91370066,0.00014579,2]
[332708083,1721469038880,-320.97665077,0.000146,2]
[332708084,1721469038890,-386.543061,0.00014628,2]
[332708085,1721469038899,-380.54643038,0.00014667,2]
[332708086,1721469038908,-482.87871356,0.00014667,2]
[332708087,1721469038918,-163920.93283907,0.00014689,2]
[332708088,1721469039054,-1420.7450062,0.00014689,2]
[332708091,1721469039979,-329.94744348,0.00014689,2]
[332708092,1721469039991,-10924.52139956,0.00014689,2]
[332708093,1721469040180,-6683.8,0.00014689,2]
[332708288,1721469043189,-155.0,0.00014283,2]
[332708289,1721469043199,-24065.9355735,0.00014689,2]
[332708290,1721469043211,-287.19090479,0.00014689,2]
[332708291,1721469044504,-3158.7286334,0.00014689,2]
[332708292,1721469044514,-300.0,0.000147,5]
[332708294,1721469044523,-150.0,0.00014719,2]
[332708295,1721469044532,-150.0,0.00014721,2]
[332708296,1721469044541,-150.0,0.00014721,2]
[332708298,1721469044549,-150.0,0.00014725,2]
[332708299,1721469044558,-150.0,0.00014726,2]
[332708300,1721469044567,-150.0,0.00014732,2]
[332708301,1721469044576,-150.0,0.00014736,2]
[332708302,1721469044584,-150.0,0.00014739,2]
[332708303,1721469044593,-130.55826002,0.00014741,2]
[332708305,1721469046089,-224.75271438,0.00014616,2]
[332708306,1721469046099,-197.39644979,0.00014667,2]
[332708307,1721469046108,-19.44173998,0.00014741,2]
[332708308,1721469046118,-150.0,0.00014742,2]
[332708309,1721469046136,-106.46225103,0.00014743,2]
[332708310,1721469046182,-43.53774897,0.00014743,2]
[332708311,1721469046191,-150.0,0.00014745,2]
[332708312,1721469046201,-150.0,0.00014747,2]
[332708313,1721469046210,-150.0,0.00014748,2]
[332708314,1721469046219,-150.0,0.00014754,2]
[332708315,1721469046228,-186.45223523,0.00014755,2]
[332708316,1721469046238,-150.0,0.00014755,2]
[332708317,1721469046247,-106.58075412,0.00014758,2]
[332708318,1721469046319,-43.41924588,0.00014758,2]
[332708319,1721469046329,-150.0,0.00014758,2]
[332708320,1721469046338,-150.0,0.00014762,2]
[332708321,1721469046347,-150.0,0.00014776,2]
[332708322,1721469046357,-150.0,0.00014776,2]
[332708323,1721469046366,-366.95941435,0.00014776,2]
[332708324,1721469046381,-259.71872886,0.00014776,2]
[332708325,1721469046390,-150.0,0.00014779,2]
[332708326,1721469046400,-150.0,0.00014782,2]
[332708327,1721469046409,-150.0,0.00014782,2]
[332708328,1721469046418,-150.0,0.00014784,2]
[332708329,1721469046428,-150.0,0.00014787,2]
[332708330,1721469046437,-150.0,0.00014787,2]
[332708331,1721469046446,-210.90033776,0.00014789,2]
[332708332,1721469046456,-150.0,0.00014793,2]
[332708333,1721469046466,-150.0,0.00014795,2]
[332708334,1721469046477,-150.0,0.00014795,2]
[332708335,1721469046486,-150.0,0.00014796,2]
[332708336,1721469046496,-150.0,0.00014798,2]
[332708337,1721469046507,-600.0,0.000148,5]
[332708338,1721469046516,-150.0,0.00014801,2]
[332708339,1721469046525,-150.0,0.00014804,2]
[332708340,1721469046535,-150.0,0.00014805,2]
[332708341,1721469046544,-150.0,0.00014805,2]
[332708342,1721469046553,-150.0,0.00014807,2]
[332708343,1721469046563,-150.0,0.00014807,2]
[332708344,1721469046572,-150.0,0.00014814,2]
[332708345,1721469046581,-150.0,0.00014815,2]
[332708346,1721469046590,-150.0,0.00014816,2]
[332708347,1721469046599,-150.0,0.00014817,2]
[332708348,1721469046608,-150.0,0.00014818,2]
[332708349,1721469046618,-150.0,0.00014823,2]
[332708350,1721469046630,-150.0,0.00014829,2]
[332708351,1721469046639,-150.0,0.0001483,2]